fUST/lending_fUST_20250625
["ID","MTS","AMOUNT","RATE_DAILY","PERIOD"]
[367486932,1750819847522,-500.0,0.00017897,2]
[367486934,1750819847532,-500.0,0.00017897,2]
[367486936,1750819847542,-500.0,0.00017897,2]
[367486938,1750819847551,-500.0,0.00017897,2]
[367486940,1750819847561,-500.0,0.00017897,2]
[367486942,1750819847571,-500.0,0.00017897,2]
[367486944,1750819847580,-500.0,0.00017897,2]
[367486946,1750819847589,-500.0,0.00017897,2]
[367486949,1750819847600,-151.0,0.000179,2]
[367486951,1750819847609,-500.0,0.00017921,2]
[367486953,1750819847618,-503.37578405,0.00017921,2]
[367486955,1750819847627,-424.9544525,0.00017923,2]
[367486957,1750819847637,-500.0,0.00017923,2]
[367486959,1750819847647,-501.57667532,0.00017923,2]
[367486961,1750819847656,-440.48067711,0.00017923,2]
[367486963,1750819847666,-500.0,0.00017923,2]
[367486964,1750819847675,-500.876052,0.00017923,2]
[367486965,1750819847684,-500.0,0.00017923,2]
[367486966,1750819847693,-501.79326718,0.00017927,2]
[367486967,1750819847703,-500.0,0.00017927,2]
[367486968,1750819847712,-500.53695718,0.00017927,2]
[367486969,1750819847722,-500.0,0.00017944,2]
[367486970,1750819847731,-616.43079525,0.00017944,2]
[367486971,1750819847740,-500.0,0.00017944,2]
[367486972,1750819847750,-500.0,0.00017944,2]
[367486973,1750819847759,-500.0,0.00017944,2]
[367486974,1750819847768,-500.0,0.00017944,2]
[367486975,1750819847777,-500.0,0.00017944,2]
[367486976,1750819847787,-157.72339,0.00017944,2]
[367486977,1750819847796,-159.051972,0.00017944,2]
[367486978,1750819847806,-5168.17569462,0.00017949,2]
[367486979,1750819847815,-501.28542813,0.00018036,2]
[367486980,1750819847824,-500.0,0.00018036,2]
[367486981,1750819847833,-500.0,0.00018036,2]
[367486982,1750819847843,-500.0,0.00018036,2]
[367486983,1750819847852,-500.0,0.00018036,2]
[367486984,1750819847861,-159.8,0.00018046,2]
[367486985,1750819847871,-460.0,0.00018046,2]
[367486986,1750819847881,-460.0,0.00018046,2]
[367486987,1750819847891,-1548.65,0.00018046,2]
[367486988,1750819847900,-1284.68,0.00018046,2]
[367486989,1750819847910,-460.0,0.00018046,2]
[367486990,1750819847919,-1004.1,0.00018046,2]
[367486991,1750819847929,-1749.56,0.00018046,2]
[367486992,1750819847938,-460.0,0.00018046,2]
[367486993,1750819847948,-460.0,0.00018046,2]
[367486994,1750819847958,-460.0,0.00018046,2]
[367486995,1750819847967,-500.0,0.00018047,2]
[367486996,1750819847976,-460.0,0.00018047,2]
[367486997,1750819847986,-460.0,0.00018047,2]
[367486998,1750819847995,-522.79887585,0.00018047,2]
[367486999,1750819848005,-899.91,0.00018047,2]
[367487000,1750819848015,-460.0,0.00018047,2]
[367487001,1750819848025,-460.0,0.00018047,2]
[367487002,1750819848034,-1860.25,0.00018047,2]
[367487003,1750819848044,-1227.14,0.00018047,2]
[367487004,1750819848053,-460.0,0.00018047,2]
[367487005,1750819848063,-615.49,0.00018047,2]
[367487006,1750819848072,-541.36,0.00018047,2]
[367487007,1750819848081,-460.0,0.00018047,2]
[367487008,1750819848091,-460.0,0.00018047,2]
[367487009,1750819848101,-460.0,0.00018047,2]
[367487010,1750819848110,-460.0,0.00018047,2]
[367487011,1750819848119,-460.0,0.00018047,2]
[367487012,1750819848129,-460.0,0.00018047,2]
[367487013,1750819848139,-460.0,0.00018047,2]
[367487014,1750819848148,-460.0,0.00018047,2]
[367487015,1750819848158,-460.0,0.00018047,2]
[367487016,1750819848167,-460.0,0.00018047,2]
[367487017,1750819848177,-349.58144528,0.00018048,2]
[367487018,1750819848187,-437.13151554,0.00018048,2]
[367487019,1750819848197,-460.0,0.00018048,2]
[367487020,1750819848209,-405.21662861,0.00018048,2]
[367487021,1750819848220,-460.0,0.00018048,2]
[367487022,1750819848230,-460.0,0.00018048,2]
[367487023,1750819848240,-460.0,0.00018048,2]
[367487024,1750819848250,-460.0,0.00018048,2]
[367487025,1750819848260,-330.28162881,0.00018048,2]
[367487026,1750819848270,-550.18,0.00018048,2]
[367487027,1750819848280,-460.0,0.00018048,2]
[367487028,1750819848290,-546.23,0.00018048,2]
[367487029,1750819848300,-571.21785384,0.00018048,2]
[367487030,1750819848311,-1196.47,0.00018048,2]
[367487031,1750819848320,-460.0,0.00018048,2]
[367487032,1750819848330,-460.0,0.00018048,2]
[367487033,1750819848339,-460.0,0.00018048,2]
[367487034,1750819848349,-460.0,0.00018048,2]
[367487035,1750819848359,-460.0,0.00018048,2]
[367487036,1750819848368,-542.36,0.00018048,2]
[367487037,1750819848378,-460.0,0.00018048,2]
[367487038,1750819848387,-460.0,0.00018048,2]
[367487039,1750819848397,-3048.66,0.00018048,2]
[367487040,1750819848406,-460.0,0.00018048,2]
[367487041,1750819848415,-460.0,0.00018048,2]
[367487042,1750819848425,-476.65,0.00018048,2]
[367487043,1750819848435,-460.0,0.00018048,2]
[367487044,1750819848444,-460.0,0.00018048,2]
[367487045,1750819848454,-460.0,0.00018048,2]
[367487046,1750819848464,-254.57,0.00018048,2]
[367487047,1750819848474,-460.0,0.00018048,2]
[367487048,1750819848483,-1191.93,0.00018048,2]
[367487049,1750819848493,-243.12,0.00018048,2]
[367487050,1750819848503,-460.0,0.00018048,2]
[367487051,1750819848512,-460.0,0.00018048,2]
[367487052,1750819848522,-306.13494473,0.00018048,2]
[367487053,1750819848531,-460.0,0.00018048,2]
[367487054,1750819848540,-1455.28,0.00018048,2]
[367487055,1750819848551,-151.0,0.00018048,2]
[367487056,1750819848563,-460.0,0.00018048,2]
[367487057,1750819848572,-460.0,0.00018048,2]
[367487058,1750819848582,-443.60446467,0.00018048,2]
[367487059,1750819848593,-151.0,0.00018048,2]
[367487060,1750819848603,-460.0,0.00018048,2]
[367487061,1750819848613,-460.0,0.00018048,2]
[367487062,1750819848623,-460.0,0.00018048,2]
[367487063,1750819848633,-513.31,0.00018048,2]
[367487064,1750819848643,-416.04717881,0.00018048,2]
[367487065,1750819848652,-1036.8,0.00018048,2]
[367487066,1750819848662,-151.0,0.00018048,2]
[367487067,1750819848672,-460.0,0.00018048,2]
[367487068,1750819848682,-264.23014974,0.00018048,2]
[367487069,1750819848691,-151.0,0.00018048,2]
[367487070,1750819848702,-460.0,0.00018048,2]
[367487071,1750819848712,-460.0,0.00018048,2]
[367487072,1750819848722,-1392.24,0.00018048,2]
[367487073,1750819848731,-460.0,0.00018048,2]
[367487074,1750819848741,-460.0,0.00018048,2]
[367487075,1750819848751,-1023.24,0.00018048,2]
[367487076,1750819848761,-460.0,0.00018048,2]
[367487077,1750819848770,-460.0,0.00018048,2]
[367487078,1750819848781,-151.0,0.00018048,2]
[367487079,1750819848790,-500.0,0.00018076,2]
[367487080,1750819848800,-397.28350752,0.00018077,2]
[367487081,1750819848813,-278.1576768,0.00018077,2]
[367487082,1750819848823,-151.5931537,0.00018077,2]
[367487083,1750819848832,-463.2328371,0.00018077,2]
[367487084,1750819848841,-569.25874012,0.00018077,2]
[367487085,1750819848851,-466.28859494,0.00018077,2]
[367487086,1750819848860,-467.65688576,0.00018077,2]
[367487087,1750819848870,-464.78014062,0.00018077,2]
[367487088,1750819848879,-469.10159919,0.00018077,2]
[367487089,1750819848888,-468.62653002,0.00018077,2]
[367487090,1750819848898,-540.02375141,0.00018077,2]
[367487091,1750819848907,-460.0,0.00018077,2]
[367487092,1750819848916,-465.05541226,0.00018077,2]
[367487093,1750819848925,-460.0,0.00018077,2]
[367487094,1750819848935,-467.3267806,0.00018077,2]
[367487095,1750819848944,-460.0,0.00018077,2]
[367487096,1750819848954,-468.80563431,0.00018077,2]
[367487097,1750819848963,-463.64439017,0.00018077,2]
[367487098,1750819848973,-460.0,0.00018077,2]
[367487099,1750819848982,-463.11066375,0.00018077,2]
[367487100,1750819848991,-464.03078145,0.00018077,2]
[367487101,1750819849000,-460.0,0.00018077,2]
[367487102,1750819849010,-460.0,0.00018077,2]
[367487103,1750819849019,-441.12256585,0.00018077,2]
[367487104,1750819849028,-462.2303714,0.00018077,2]
[367487105,1750819849037,-460.0,0.00018077,2]
[367487106,1750819849047,-460.0,0.00018077,2]
[367487107,1750819849056,-465.1755697,0.00018077,2]
[367487108,1750819849066,-468.46302423,0.00018077,2]
[367487109,1750819849075,-464.65081181,0.00018077,2]
[367487110,1750819849084,-461.17896764,0.00018077,2]
[367487111,1750819849093,-466.03578202,0.00018077,2]
[367487112,1750819849103,-462.86509866,0.00018077,2]
[367487113,1750819849112,-467.44438804,0.00018077,2]
[367487114,1750819849122,-460.0,0.00018077,2]
[367487115,1750819849132,-466.8470811,0.00018077,2]
[367487116,1750819849141,-463.43411108,0.00018077,2]
[367487117,1750819849151,-465.75505613,0.00018077,2]
[367487118,1750819849160,-466.53006277,0.00018077,2]
[367487119,1750819849169,-461.72103532,0.00018077,2]
[367487120,1750819849179,-460.0,0.00018077,2]
[367487121,1750819849188,-462.4039038,0.00018077,2]
[367487122,1750819849198,-465.47019445,0.00018077,2]
[367487123,1750819849207,-461.20086993,0.00018077,2]
[367487124,1750819849220,-463.74158925,0.00018077,2]
[367487125,1750819849230,-463.5921407,0.00018077,2]
[367487126,1750819849239,-465.19069236,0.00018077,2]
[367487127,1750819849250,-460.0,0.00018077,2]
[367487128,1750819849259,-464.96750783,0.00018077,2]
[367487129,1750819849269,-463.79279247,0.00018077,2]
[367487130,1750819849279,-468.08,0.00018077,2]
[367487131,1750819849288,-461.82571624,0.00018077,2]
[367487132,1750819849298,-460.0,0.00018077,2]
[367487133,1750819849307,-461.85490041,0.00018077,2]
[367487134,1750819849317,-465.80834029,0.00018077,2]
[367487135,1750819849327,-460.0,0.00018077,2]
[367487136,1750819849336,-460.0,0.00018077,2]
[367487137,1750819849345,-460.0,0.00018077,2]
[367487138,1750819849355,-460.0,0.00018077,2]
[367487139,1750819849365,-464.22250138,0.00018077,2]
[367487140,1750819849374,-466.9346475,0.00018077,2]
[367487141,1750819849383,-460.0,0.00018077,2]
[367487142,1750819849392,-470.51955669,0.00018077,2]
[367487143,1750819849401,-460.0,0.00018077,2]
[367487144,1750819849410,-460.0,0.00018077,2]
[367487145,1750819849419,-460.0,0.00018077,2]
[367487146,1750819849429,-466.4213592,0.00018077,2]
[367487147,1750819849438,-460.0,0.00018077,2]
[367487148,1750819849447,-460.0,0.00018077,2]
[367487149,1750819849456,-467.77789809,0.00018077,2]
[367487150,1750819849466,-461.64098263,0.00018077,2]
[367487151,1750819849475,-462.45823068,0.00018077,2]
[367487152,1750819849484,-460.0,0.00018077,2]
[367487153,1750819849494,-469.88036713,0.00018077,2]
[367487154,1750819849503,-460.0,0.00018077,2]
[367487155,1750819849512,-461.55637915,0.00018077,2]
[367487156,1750819849521,-460.88895312,0.00018077,2]
[367487157,1750819849531,-467.24117789,0.00018077,2]
[367487158,1750819849542,-181.22573577,0.00018077,2]
[367487159,1750819849552,-470.52539763,0.00018077,2]
[367487160,1750819849561,-461.14857321,0.00018077,2]
[367487161,1750819849571,-460.0,0.00018077,2]
[367487162,1750819849787,-464.79240548,0.00018077,2]
[367487163,1750819849797,-583.11115558,0.00018077,2]
[367487164,1750819849806,-478.21665777,0.00018077,2]
[367487165,1750819849815,-460.0,0.00018077,2]
[367487166,1750819849824,-463.01148576,0.00018077,2]
[367487167,1750819849833,-463.64734181,0.00018077,2]
[367487168,1750819849842,-467.51926722,0.00018077,2]
[367487169,1750819849851,-466.52224186,0.00018077,2]
[367487170,1750819849956,-503.10966572,0.00018077,2]
[367487171,1750819849966,-463.39513666,0.00018077,2]
[367487172,1750819849975,-464.7706507,0.00018077,2]
[367487173,1750819849985,-463.13410802,0.00018077,2]
[367487174,1750819849994,-460.0,0.00018077,2]
[367487175,1750819850003,-465.50509404,0.00018077,2]
[367487176,1750819850013,-460.0,0.00018077,2]
[367487177,1750819850022,-466.46189606,0.00018077,2]
[367487178,1750819850031,-466.02834185,0.00018077,2]
[367487179,1750819850041,-463.83199051,0.00018077,2]
[367487180,1750819850051,-151.0,0.00018077,2]
[367487181,1750819850062,-470.35559067,0.00018077,2]
[367487182,1750819850073,-462.37411969,0.00018077,2]
[367487183,1750819850083,-460.0,0.00018077,2]
[367487184,1750819850092,-469.01946657,0.00018077,2]
[367487185,1750819850103,-151.0,0.00018077,2]
[367487186,1750819850112,-151.0,0.00018077,2]
[367487187,1750819850122,-151.0,0.00018077,2]
[367487188,1750819850131,-464.94567181,0.00018077,2]
[367487189,1750819850141,-596.46679866,0.00018077,2]
[367487190,1750819850151,-455.0,0.00018077,2]
[367487191,1750819850161,-463.23950244,0.00018077,2]
[367487192,1750819850171,-460.0,0.00018077,2]
[367487193,1750819850180,-469.69024075,0.00018077,2]
[367487194,1750819850189,-461.66589424,0.00018077,2]
[367487195,1750819850199,-464.5305246,0.00018077,2]
[367487196,1750819850211,-467.02606583,0.00018077,2]
[367487197,1750819850223,-653.279441,0.00018077,2]
[367487198,1750819850232,-460.0,0.00018077,2]
[367487199,1750819850242,-653.279441,0.00018077,2]
[367487200,1750819850251,-463.28947298,0.00018077,2]
[367487201,1750819850263,-473.23694174,0.00018077,2]
[367487202,1750819850272,-151.0,0.00018077,2]
[367487203,1750819850281,-153.055386,0.00018077,2]
[367487204,1750819850292,-151.0,0.00018077,2]
[367487205,1750819850304,-465.75128816,0.00018077,2]
[367487206,1750819850317,-151.0,0.00018077,2]
[367487207,1750819850326,-462.63190724,0.00018077,2]
[367487208,1750819850335,-151.0,0.00018077,2]
[367487209,1750819850345,-463.86169144,0.00018077,2]
[367487210,1750819850355,-460.0,0.00018077,2]
[367487211,1750819850364,-462.42787728,0.00018077,2]
[367487212,1750819850373,-230.34145,0.00018077,2]
[367487213,1750819850382,-469.75459424,0.00018077,2]
[367487214,1750819850392,-543.7797676,0.00018077,2]
[367487215,1750819850401,-464.94520971,0.00018077,2]
[367487216,1750819850410,-151.0,0.00018077,2]
[367487217,1750819850419,-460.0,0.00018077,2]
[367487218,1750819850429,-156.000617,0.00018077,2]
[367487219,1750819850440,-156.000617,0.00018077,2]
[367487220,1750819850449,-460.0,0.00018077,2]
[367487221,1750819850458,-465.57555808,0.00018077,2]
[367487222,1750819850468,-460.0,0.00018077,2]
[367487223,1750819850478,-460.0,0.00018077,2]
[367487224,1750819850487,-466.04061526,0.00018077,2]
[367487225,1750819850496,-465.40040219,0.00018077,2]
[367487226,1750819850506,-274.881857,0.00018077,2]
[367487227,1750819850515,-274.881857,0.00018077,2]
[367487228,1750819850525,-460.0,0.00018077,2]
[367487229,1750819850535,-468.28682327,0.00018077,2]
[367487230,1750819850545,-460.0,0.00018077,2]
[367487231,1750819850556,-328.84471088,0.00018077,2]
[367487232,1750819850567,-462.27019551,0.00018077,2]
[367487233,1750819850577,-468.16791537,0.00018077,2]
[367487234,1750819850587,-1054.316626,0.00018077,2]
[367487235,1750819850597,-1054.316626,0.00018077,2]
[367487236,1750819850607,-157.497869,0.00018077,2]
[367487237,1750819850617,-157.497869,0.00018077,2]
[367487238,1750819850627,-471.88813327,0.00018077,2]
[367487239,1750819850639,-159.051972,0.00018077,2]
[367487240,1750819850648,-463.85008562,0.00018078,2]
[367487241,1750819850657,-461.7889499,0.00018078,2]
[367487242,1750819850667,-460.0,0.00018078,2]
[367487243,1750819850676,-505.81811383,0.00018078,2]
[367487244,1750819850686,-460.0,0.00018078,2]
[367487245,1750819850695,-461.55543917,0.00018078,2]
[367487246,1750819850705,-183.28015549,0.00018079,2]
[367487247,1750819850716,-500.59761066,0.00018081,2]
[367487248,1750819850728,-289.6183622,0.00018081,2]
[367487249,1750819850741,-151.0,0.000181,2]
[367487250,1750819850751,-500.27606373,0.00018112,2]
[367487251,1750819850760,-502.23501126,0.00018112,2]
[367487252,1750819850770,-500.0,0.00018112,2]
[367487253,1750819850779,-500.0,0.00018112,2]
[367487254,1750819850790,-500.0,0.00018132,2]
[367487255,1750819850800,-500.0,0.00018235,2]
[367487256,1750819850811,-151.0,0.00018236,2]
[367487257,1750819850820,-151.0,0.00018236,2]
[367487258,1750819850829,-151.0,0.00018236,2]
[367487259,1750819850839,-151.0,0.000183,2]
[367487260,1750819850850,-6244.70143593,0.000183,2]
[367487261,1750819850861,-6244.70143571,0.000183,2]
[367487262,1750819850870,-6244.70143571,0.000183,2]
[367487263,1750819850879,-6244.70143571,0.000183,2]
[367487264,1750819850889,-6244.70143571,0.000183,2]
[367487265,1750819850899,-6244.70143571,0.000183,2]
[367487266,1750819850908,-500.40573627,0.00018311,2]
[367487267,1750819850918,-1898.14,0.00018312,3]
[367487268,1750819850928,-949.06,0.00018312,3]
[367487269,1750819850937,-474.54,0.00018312,3]
[367487270,1750819850946,-5168.17569462,0.00018315,2]
[367487271,1750819850956,-460.0,0.0001832,2]
[367487272,1750819850966,-460.0,0.0001832,2]
[367487273,1750819850976,-1548.65,0.0001832,2]
[367487274,1750819850985,-1284.68,0.0001832,2]
[367487275,1750819850995,-460.0,0.0001832,2]
[367487276,1750819851005,-1004.1,0.0001832,2]
[367487277,1750819851014,-1749.56,0.0001832,2]
[367487278,1750819851023,-460.0,0.0001832,2]
[367487279,1750819851033,-460.0,0.0001832,2]
[367487280,1750819851043,-460.0,0.0001832,2]
[367487281,1750819851052,-524.65886607,0.00018321,2]
[367487282,1750819851063,-311.38708836,0.00018321,2]
[367487283,1750819851072,-899.91,0.00018321,2]
[367487284,1750819851082,-460.0,0.00018321,2]
[367487285,1750819851092,-460.0,0.00018321,2]
[367487286,1750819851101,-1860.25,0.00018321,2]
[367487287,1750819851111,-1227.14,0.00018321,2]
[367487288,1750819851120,-460.0,0.00018321,2]
[367487289,1750819851129,-615.49,0.00018321,2]
[367487290,1750819851139,-541.36,0.00018321,2]
[367487291,1750819851152,-460.0,0.00018321,2]
[367487292,1750819851162,-460.0,0.00018321,2]
[367487293,1750819851172,-460.0,0.00018321,2]
[367487294,1750819851181,-243.44,0.00018321,2]
[367487295,1750819851191,-460.0,0.00018321,2]
[367487296,1750819851202,-151.0,0.00018321,2]
[367487297,1750819851214,-151.0,0.00018321,2]
[367487298,1750819851224,-460.0,0.00018321,2]
[367487299,1750819851234,-151.0,0.00018321,2]
[367487300,1750819851245,-523.08,0.00018321,2]
[367487301,1750819851255,-460.0,0.00018321,2]
[367487302,1750819851264,-151.0,0.00018321,2]
[367487303,1750819851274,-460.0,0.00018321,2]
[367487304,1750819851284,-460.0,0.00018321,2]
[367487305,1750819851295,-151.0,0.00018321,2]
[367487306,1750819851304,-460.0,0.00018322,2]
[367487307,1750819851315,-385.32489469,0.00018322,2]
[367487308,1750819851325,-460.0,0.00018322,2]
[367487309,1750819851334,-460.0,0.00018322,2]
[367487310,1750819851344,-460.0,0.00018322,2]
[367487311,1750819851353,-460.0,0.00018322,2]
[367487312,1750819851362,-546.23,0.00018322,2]
[367487313,1750819851372,-1196.47,0.00018322,2]
[367487314,1750819851382,-460.0,0.00018322,2]
[367487315,1750819851391,-460.0,0.00018322,2]
[367487316,1750819851400,-460.0,0.00018322,2]
[367487317,1750819851410,-460.0,0.00018322,2]
[367487318,1750819851419,-460.0,0.00018322,2]
[367487319,1750819851428,-542.36,0.00018322,2]
[367487320,1750819851437,-198.2,0.00018322,2]
[367487321,1750819851446,-460.0,0.00018322,2]
[367487322,1750819851456,-3048.66,0.00018322,2]
[367487323,1750819851466,-460.0,0.00018322,2]
[367487324,1750819851475,-460.0,0.00018322,2]
[367487325,1750819851484,-476.65,0.00018322,2]
[367487326,1750819851493,-460.0,0.00018322,2]
[367487327,1750819851502,-460.0,0.00018322,2]
[367487328,1750819851511,-339.44543232,0.00018322,2]
[367487329,1750819851522,-500.51346123,0.00018322,2]
[367487330,1750819851531,-1191.93,0.00018322,2]
[367487331,1750819851540,-274.881857,0.00018322,2]
[367487332,1750819851549,-274.881857,0.00018322,2]
[367487333,1750819851559,-322.09710814,0.00018322,2]
[367487334,1750819851569,-460.0,0.00018322,2]
[367487335,1750819851578,-460.0,0.00018322,2]
[367487336,1750819851587,-1455.28,0.00018322,2]
[367487337,1750819851596,-1054.316626,0.00018322,2]
[367487338,1750819851605,-460.0,0.00018322,2]
[367487339,1750819851614,-460.0,0.00018322,2]
[367487340,1750819851623,-1054.316626,0.00018322,2]
[367487341,1750819851632,-460.0,0.00018322,2]
[367487342,1750819851641,-233.14,0.00018322,2]
[367487343,1750819851651,-460.0,0.00018322,2]
[367487344,1750819851660,-513.31,0.00018322,2]
[367487345,1750819851670,-1036.8,0.00018322,2]
[367487346,1750819851679,-460.0,0.00018322,2]
[367487347,1750819851688,-460.0,0.00018322,2]
[367487348,1750819851697,-165.17548333,0.00018322,2]
[367487349,1750819851707,-1392.24,0.00018322,2]
[367487350,1750819851715,-411.73822082,0.00018322,2]
[367487351,1750819851725,-460.0,0.00018322,2]
[367487352,1750819851734,-1023.24,0.00018322,2]
[367487353,1750819851744,-460.0,0.00018322,2]
[367487354,1750819851753,-460.0,0.00018322,2]
[367487355,1750819851762,-160.0,0.0001833,2]
[367487356,1750819851771,-524.21181985,0.0001833,2]
[367487357,1750819851780,-160.0,0.0001833,2]
[367487358,1750819851789,-160.0,0.0001833,2]
[367487359,1750819851798,-160.0,0.0001833,2]
[367487360,1750819851807,-160.0,0.0001833,2]
[367487361,1750819851816,-160.0,0.0001833,2]
[367487362,1750819851826,-160.0,0.0001833,2]
[367487363,1750819851835,-836.86812089,0.0001833,2]
[367487364,1750819851845,-846.80634355,0.0001833,2]
[367487365,1750819851854,-12558.06783089,0.0001833,2]
[367487366,1750819851863,-213.69531788,0.0001833,2]
[367487367,1750819851872,-230.22714675,0.0001833,2]
[367487368,1750819851881,-160.0,0.0001833,2]
[367487369,1750819851891,-425.18553072,0.0001833,2]
[367487370,1750819851900,-500.0,0.0001835,2]
[367487371,1750819851909,-235.44273136,0.00018351,2]
[367487372,1750819851918,-460.0,0.00018351,2]
[367487373,1750819851927,-460.0,0.00018351,2]
[367487374,1750819851936,-460.0,0.00018351,2]
[367487375,1750819851945,-245.18466007,0.00018351,2]
[367487376,1750819851954,-460.0,0.00018351,2]
[367487377,1750819851963,-359.59241299,0.00018351,2]
[367487378,1750819851972,-460.0,0.00018351,2]
[367487379,1750819851981,-460.0,0.00018351,2]
[367487380,1750819851990,-460.0,0.00018351,2]
[367487381,1750819851999,-460.0,0.00018351,2]
[367487382,1750819852009,-460.0,0.00018351,2]
[367487383,1750819852018,-460.0,0.00018351,2]
[367487384,1750819852027,-455.34,0.00018351,2]
[367487385,1750819852036,-460.0,0.00018351,2]
[367487386,1750819852046,-608.68,0.00018351,2]
[367487387,1750819852150,-295.55434875,0.00018351,2]
[367487388,1750819852161,-350.32305674,0.00018351,2]
[367487389,1750819852170,-460.0,0.00018351,2]
[367487390,1750819852179,-460.0,0.00018351,2]
[367487391,1750819852188,-460.0,0.00018351,2]
[367487392,1750819852197,-263.06,0.00018351,2]
[367487393,1750819852206,-247.85304603,0.00018351,2]
[367487394,1750819852223,-460.0,0.00018351,2]
[367487395,1750819852232,-573.00009194,0.00018351,2]
[367487396,1750819852241,-486.50588644,0.00018351,2]
[367487397,1750819852250,-537.29330944,0.00018351,2]
[367487398,1750819852261,-460.0,0.00018351,2]
[367487399,1750819852271,-167.51350005,0.00018351,2]
[367487400,1750819852280,-458.11561876,0.00018351,2]
[367487401,1750819852290,-199.081525,0.00018351,2]
[367487402,1750819852299,-151.0,0.00018351,2]
[367487403,1750819852310,-226.116452,0.00018351,2]
[367487404,1750819852320,-151.0,0.00018351,2]
[367487405,1750819852329,-460.0,0.00018351,2]
[367487406,1750819852338,-151.0,0.00018351,2]
[367487407,1750819852347,-394.92,0.00018351,2]
[367487408,1750819852357,-156.000617,0.00018351,2]
[367487409,1750819852366,-156.000617,0.00018351,2]
[367487410,1750819852376,-460.0,0.00018351,2]
[367487411,1750819852386,-460.0,0.00018351,2]
[367487412,1750819852395,-460.0,0.00018351,2]
[367487413,1750819852404,-157.497869,0.00018351,2]
[367487414,1750819852413,-157.497869,0.00018351,2]
[367487415,1750819852422,-159.051972,0.00018351,2]
[367487416,1750819852432,-151.0,0.000184,2]
[367487417,1750819852441,-151.0,0.000184,2]
[367487418,1750819852450,-151.0,0.000184,2]
[367487419,1750819852460,-653.279441,0.000184,2]
[367487420,1750819852469,-653.279441,0.000184,2]
[367487421,1750819852479,-1000.0,0.00018415,2]
[367487422,1750819852487,-192.0812288,0.00018415,2]
[367487423,1750819852497,-224.68595389,0.00018415,2]
[367487424,1750819852506,-1000.0,0.00018415,2]
[367487425,1750819852516,-1001.04405135,0.00018445,2]
[367487426,1750819852526,-1002.42028969,0.00018445,2]
[367487427,1750819852535,-500.8586686,0.00018445,2]
[367487428,1750819852544,-501.09053302,0.00018445,2]
[367487429,1750819852555,-1000.0,0.00018445,2]
[367487430,1750819852564,-502.24757637,0.00018445,2]
[367487431,1750819852574,-500.74985877,0.00018445,2]
[367487432,1750819852583,-501.24090785,0.00018445,2]
[367487433,1750819852593,-887.34477161,0.00018445,2]
[367487434,1750819852602,-505.32943561,0.00018467,2]
[367487435,1750819852611,-500.36202575,0.00018467,2]
[367487436,1750819852619,-160.4161611,0.00018467,2]
[367487437,1750819852628,-1000.0,0.00018469,2]
[367487438,1750819852639,-502.29752276,0.00018471,2]
[367487439,1750819852648,-1000.0,0.00018471,2]
[367487440,1750819852658,-1002.55043655,0.00018471,2]
[367487441,1750819852667,-501.28082104,0.00018475,2]
[367487442,1750819852676,-501.53978447,0.00018492,2]
[367487443,1750819852685,-502.0656318,0.00018492,2]
[367487444,1750819852694,-1000.0,0.00018492,2]
[367487445,1750819852703,-533.18574769,0.00018492,2]
[367487446,1750819852712,-377.86166272,0.00018492,2]
[367487447,1750819852722,-151.0,0.000185,2]